bitfinex-derivatives/quotes_ETHF0:USTF0_20250428
["timestamp","ask_amount","ask_price","bid_price","bid_amount"]
[1745861860878,1.13409,1763.0,1762.9,1.13408]
[1745861861078,1.13409,1763.0,1762.9,2.73998]
[1745861861281,6.64999,1763.0,1762.9,2.73998]
[1745861861979,6.64999,1763.0,1762.9,1.6059]
[1745861862181,1.13409,1762.9,1762.8,3.2078]
[1745861862380,1.13416,1762.8,1762.7,5.06222]
[1745861862580,1.95456,1762.8,1762.7,6.70972]
[1745861862780,3.66846,1762.8,1762.7,6.70972]
[1745861864480,1.13408,1763.0,1762.9,1.13407]
[1745861865083,4.93608,1763.0,1762.9,1.13407]
[1745861865583,4.93608,1763.0,1762.9,2.84127]
[1745861866187,3.802,1763.0,1762.9,2.84127]
[1745861867284,0.8652,1763.3,1763.2,1.1339]
[1745861867488,1.99903,1763.3,1763.2,4.3417]
[1745861867683,1.99903,1763.3,1763.2,1.1339]
[1745861867884,3.69973,1763.3,1763.2,1.1339]
[1745861868091,3.69973,1763.3,1763.2,2.7661]
[1745861868886,3.69973,1763.3,1763.0,5.92148]
[1745861868887,1.13396,1763.1,1763.0,5.92148]
[1745861869083,1.13396,1763.1,1763.0,6.69318]
[1745861869286,1.13396,1763.1,1763.0,9.90098]
[1745861869488,2.83465,1763.2,1763.1,1.13396]
[1745861870080,6.63665,1763.2,1763.1,1.13396]
[1745861870282,6.63665,1763.2,1763.1,2.76606]
[1745861874400,6.63665,1763.2,1763.1,1.13396]
[1745861874588,1.13396,1763.1,1763.0,8.26877]
[1745861874889,3.71596,1763.1,1763.0,8.26877]
[1745861875390,3.71596,1763.1,1763.0,9.90957]
[1745861875888,3.71596,1763.1,1763.0,8.7756]
[1745861876195,7.51796,1763.1,1763.0,8.7756]
[1745861876493,7.51796,1763.1,1763.0,9.90963]
[1745861877290,7.51796,1763.1,1763.0,6.70183]
[1745861877794,7.51796,1763.1,1763.0,9.90963]
[1745861879091,3.2078,1763.6,1763.0,9.90963]
[1745861879092,3.2078,1763.6,1763.5,1.13371]
[1745861879301,1.13353,1763.9,1763.6,2.83411]
[1745861879504,1.13353,1763.9,1763.8,1.13349]
[1745861879701,3.53583,1764.0,1763.9,1.13345]
[1745861880206,1.13345,1763.9,1763.8,2.81167]
[1745861880706,7.33783,1764.0,1763.9,1.13345]
[1745861881104,1.13345,1763.9,1763.8,2.81166]
[1745861881602,1.13363,1763.7,1763.6,1.13364]
[1745861881799,1.13362,1763.7,1763.6,1.13362]
[1745861882204,4.93562,1763.7,1763.6,2.81182]
[1745861882714,6.54112,1763.7,1763.6,2.81182]
[1745861882908,5.4075,1763.7,1763.6,2.81182]
[1745861883211,6.54108,1763.7,1763.6,2.81182]
[1745861883808,3.802,1763.7,1763.6,2.81182]
[1745861884207,1.13358,1763.7,1763.6,2.81182]
[1745861886115,2.84228,1763.7,1763.6,1.6782]
[1745861886415,1.13358,1763.7,1763.6,2.81184]
[1745861886712,6.04096,1764.2,1763.6,10.6002]
[1745861886919,1.1335,1763.9,1763.8,4.3413]
[1745861887117,4.9355,1763.9,1763.8,6.0351]
[1745861887317,3.802,1763.9,1763.8,6.0351]
[1745861887618,4.93545,1763.9,1763.8,6.0351]
[1745861888209,1.13344,1764.0,1763.9,1.13345]
[1745861888412,1.13344,1764.0,1763.9,2.82725]
[1745861889208,4.93544,1764.0,1763.9,2.82725]
[1745861891211,4.93544,1764.0,1763.9,1.6938]
[1745861891408,4.93544,1764.0,1763.9,2.82725]
[1745861893121,4.93544,1764.0,1763.9,1.6938]
[1745861893421,4.93544,1764.0,1763.9,2.82725]
[1745861893615,4.93544,1764.0,1763.9,1.6938]
[1745861895622,4.93544,1764.0,1763.9,2.82725]
[1745861895920,4.9355,1764.0,1763.9,1.6938]
[1745861897525,4.9355,1764.0,1763.9,2.82736]
[1745861898019,4.9355,1764.0,1763.9,1.6938]
[1745861899220,1.13369,1763.7,1763.6,5.05576]
[1745861899421,1.13369,1763.7,1763.6,6.74376]
[1745861899619,1.13369,1763.7,1763.6,3.922]
[1745861900018,2.86029,1763.7,1763.6,3.922]
[1745861900226,2.86029,1763.7,1763.5,1.688]
[1745861900227,1.13376,1763.6,1763.5,1.688]
[1745861900521,3.68686,1763.6,1763.5,1.688]
[1745861900726,3.68686,1763.6,1763.5,2.82182]
[1745861900918,3.68686,1763.6,1763.5,1.688]
[1745861901119,7.48886,1763.6,1763.5,2.82182]
[1745861901323,7.48886,1763.6,1763.5,1.688]
[1745861902218,7.48886,1763.6,1763.5,2.82182]
[1745861903625,3.802,1763.6,1763.5,2.82182]
[1745861903830,3.802,1763.6,1763.5,6.02962]
[1745861904324,1.13376,1763.6,1763.5,6.02957]
[1745861905825,1.13376,1763.6,1763.5,2.82177]
[1745861906218,2.87535,1763.7,1763.6,1.13376]
[1745861906419,2.87535,1763.7,1763.6,2.87346]
[1745861906619,2.87535,1763.7,1763.6,1.7397]
[1745861906926,3.72925,1763.7,1763.6,2.87346]
[1745861907118,7.53125,1763.7,1763.6,2.87346]
[1745861908828,1.13376,1763.6,1763.5,4.34159]
[1745861909029,2.83896,1763.6,1763.5,3.2078]
[1745861909327,1.13376,1763.6,1763.5,4.34162]
[1745861909521,1.13376,1763.6,1763.5,6.05142]
[1745861909828,2.83896,1763.6,1763.5,4.9176]
[1745861910020,2.83896,1763.6,1763.5,6.05142]
[1745861910222,6.64096,1763.6,1763.5,6.05142]
[1745861910515,6.64096,1763.6,1763.5,1.7098]
[1745861910721,1.13382,1763.5,1763.4,1.94113]
[1745861910927,2.78942,1763.5,1763.4,1.94113]
[1745861911227,6.59142,1763.5,1763.4,3.60623]
[1745861912316,1.13388,1763.4,1763.3,49.89501]
[1745861912522,1.13388,1763.4,1763.3,9.92781]
[1745861912819,3.65628,1763.4,1763.3,9.92781]
[1745861913024,4.45758,1763.4,1763.3,50.72781]
[1745861913227,8.25958,1763.4,1763.3,50.72781]
[1745861916131,4.45758,1763.4,1763.3,50.72781]
[1745861916430,3.79658,1763.4,1763.3,50.72781]
[1745861917527,3.802,1763.5,1763.4,1.13388]
[1745861917730,3.802,1763.5,1763.4,2.74548]
[1745861917925,1.13364,1763.8,1763.7,1.13369]
[1745861918127,4.93564,1763.8,1763.7,1.13369]
[1745861918328,6.63618,1763.8,1763.5,2.4775]
[1745861918534,3.60475,1763.7,1763.6,41.93369]
[1745861919027,3.60475,1763.7,1763.6,2.77129]
[1745861919229,3.802,1763.7,1763.6,2.77129]
[1745861919424,3.802,1763.7,1763.6,5.97909]
[1745861920336,1.13357,1763.9,1763.8,1.13363]
[1745861920933,1.13357,1763.9,1763.8,3.60463]
[1745861921233,4.93557,1763.9,1763.8,3.60463]
[1745861921936,4.93557,1763.9,1763.8,4.45873]
[1745861922130,4.94358478,1763.9,1763.8,4.45873]
[1745861923135,1.14158478,1763.9,1763.8,4.45873]
[1745861924727,0.00801478,1763.9,1763.8,4.45873]
[1745861926439,5.18043,1764.2,1764.1,1.13343]
[1745861927134,8.98243,1764.2,1764.1,3.72673]
[1745861927336,8.98243,1764.2,1764.1,1.7248]
[1745861927941,8.98243,1764.2,1764.1,2.85823]
[1745861928138,5.77463,1764.2,1764.1,2.85823]
[1745861928540,5.77457,1764.2,1764.1,2.85823]
[1745861928837,4.6412,1764.2,1764.1,2.85823]
[1745861929934,3.802,1764.2,1764.1,2.85823]
[1745861930139,3.802,1764.2,1764.1,6.06603]
[1745861934336,3.35857503,1764.2,1764.1,6.06603]
[1745861935228,4.49188,1764.5,1764.4,1.13324]
[1745861935541,1.7451,1764.5,1764.4,1.13324]
[1745861936151,6.68028,1764.5,1764.4,1.13324]
[1745861936349,5.5471,1764.5,1764.4,1.13324]
[1745861936540,5.5471,1764.5,1764.4,4.34104]
[1745861936541,3.802,1764.5,1764.4,4.34104]
[1745861937045,3.802,1764.5,1764.4,6.00154]
[1745861937243,1.13306,1764.7,1764.6,1.13311]
[1745861937447,2.77204,1764.8,1764.7,1.13305]
[1745861938144,5.441,1764.8,1764.7,2.84015]
[1745861938345,4.6155,1764.8,1764.7,2.84015]
[1745861938736,3.802,1764.8,1764.7,2.84015]
[1745861939246,3.802,1764.8,1764.7,43.64015]
[1745861940145,0.8119,1765.1,1765.0,1.13286]
[1745861940343,1.94469,1765.1,1765.0,1.13286]
[1745861940546,0.8119,1765.1,1765.0,1.13286]
[1745861940738,0.8119,1765.1,1765.0,2.90376]
[1745861941243,3.802,1765.1,1765.0,6.11156]
[1745861941641,2.65246,1765.1,1765.0,11.99466]
[1745861942143,4.34003,1766.0,1765.9,1.13224]
[1745861942443,1.13254,1765.5,1765.4,7.1218]
[1745861942643,1.13254,1765.5,1765.4,3.2078]
[1745861942837,1.1326,1765.4,1765.3,3.914]
[1745861943043,5.0,1765.5,1765.2,3.914]
[1745861943044,1.13266,1765.3,1765.2,3.914]
[1745861943242,0.8766,1765.3,1765.2,5.04673]
[1745861943544,0.8766,1765.3,1765.2,8.25453]
[1745861943745,3.802,1765.4,1765.3,1.13266]
[1745861943939,3.802,1765.4,1765.3,3.68896]
[1745861946438,3.802,1765.4,1765.3,8.68896]
[1745861946643,2.37731,1765.4,1765.3,3.68896]
[1745861946845,1.22668,1765.4,1765.3,8.68896]
[1745861947040,0.8248,1765.7,1765.3,8.68896]
[1745861947254,0.8248,1765.7,1765.6,1.13247]
[1745861947444,0.8248,1765.7,1765.6,5.04547]
[1745861947643,0.8248,1765.7,1765.6,7.56167]
[1745861947949,3.2078,1766.0,1765.8,1.1323]
[1745861948149,1.13241,1765.7,1765.6,5.04541]
[1745861948551,1.99934,1765.9,1765.8,1.13234]
[1745861948752,1.13238,1765.8,1765.7,1.13235]
[1745861948943,1.99933,1765.9,1765.8,1.13234]
[1745861949142,5.80133,1765.9,1765.8,1.13234]
[1745861949345,7.1242,1765.9,1765.8,1.13234]
[1745861949846,3.802,1765.9,1765.8,1.13234]
[1745861950050,3.802,1765.9,1765.8,2.81244]
[1745861952252,1.24143,1765.9,1765.8,2.81244]
[1745861952853,0.07918,1765.9,1765.8,2.81244]
[1745861953553,1.7119,1766.4,1766.3,1.13202]
[1745861953749,2.84386,1766.4,1766.3,1.13202]
[1745861954049,5.5139,1766.4,1766.3,1.13202]
[1745861954250,10.5139,1766.4,1766.3,1.13202]
[1745861954641,5.5139,1766.4,1766.3,1.13202]
[1745861954846,7.1829,1766.4,1766.3,1.13202]
[1745861955348,3.802,1766.4,1766.3,4.33982]
[1745861955847,3.802,1766.4,1766.2,1.13206]
[1745861956054,2.4834,1766.3,1766.2,1.13209]
[1745861957054,6.2854,1766.3,1766.2,1.13209]
[1745861957353,7.41742,1766.3,1766.2,1.13209]
[1745861957550,12.41742,1766.3,1766.2,1.13209]
[1745861957754,7.41742,1766.3,1766.2,1.13209]
[1745861957959,1.13209,1766.2,1766.1,3.911]
[1745861958158,3.63459,1766.2,1766.1,3.911]
[1745861958759,3.63459,1766.2,1766.1,1.13215]
[1745861958955,6.84239,1766.2,1766.1,1.13215]
[1745861959259,10.64439,1766.2,1766.1,1.13215]
[1745861959759,1.13221,1766.1,1766.0,1.13217]
[1745861960060,1.13221,1766.0,1765.9,4.34008]
[1745861960251,1.13221,1766.0,1765.9,1.13228]
[1745861960447,2.773,1766.1,1766.0,1.13221]
[1745861961158,6.575,1766.1,1766.0,1.13221]
[1745861961658,4.93415,1766.1,1766.0,1.13221]
[1745861961859,6.58945,1766.1,1766.0,1.13221]
[1745861966360,13.28784,1766.1,1765.6,3.91]
[1745861966560,2.83081,1765.9,1765.6,5.5299]
[1745861966759,3.67418,1765.8,1765.7,1.13238]
[1745861967164,1.13241,1765.7,1765.6,47.46232]
[1745861967363,2.81911,1765.7,1765.6,6.66232]
[1745861968260,6.62111,1765.7,1765.6,6.66232]
[1745861968467,5.4887,1765.7,1765.6,6.66232]
[1745861968866,6.62111,1765.7,1765.6,6.66232]
[1745861969163,6.62111,1765.7,1765.6,5.5299]
[1745861969361,1.13247,1765.6,1765.5,2.85484]
[1745861969664,2.79977,1765.6,1765.5,2.85484]
[1745861970168,6.60177,1765.6,1765.5,2.85484]
[1745861970568,6.60177,1765.6,1765.5,3.98738]
[1745861973474,3.802,1765.6,1765.5,8.84658]
[1745861973671,3.802,1765.6,1765.5,9.71468]
[1745861978075,4.93447,1765.6,1765.5,9.71468]
[1745861978267,4.93447,1765.6,1765.5,6.06264]
[1745861978472,4.93447,1765.6,1765.5,3.98738]
[1745861978970,4.93447,1765.6,1765.5,2.85484]
[1745861979176,6.58537,1765.6,1765.5,2.85484]
[1745861979367,6.58537,1765.6,1765.5,3.98738]
[1745861979563,6.58537,1765.6,1765.5,2.85484]
[1745861979972,6.58537,1765.6,1765.5,3.98738]
[1745861984186,6.58537,1765.6,1765.5,2.85484]
[1745861984384,6.58537,1765.6,1765.5,3.98738]
[1745861984589,6.58537,1765.6,1765.5,2.85484]
[1745861985178,6.58537,1765.6,1765.5,3.98738]
[1745861985480,6.58537,1765.6,1765.5,2.85484]
[1745861986185,6.58537,1765.6,1765.5,3.98738]
[1745861986386,6.58537,1765.6,1765.5,4.51784]
[1745861986585,9.79317,1765.6,1765.5,2.85484]
[1745861986887,9.88942669,1765.6,1765.5,2.85484]
[1745861987075,6.68162669,1765.6,1765.5,2.85484]
[1745861987282,9.88942669,1765.6,1765.5,2.85484]
[1745861988289,6.68162669,1765.6,1765.5,2.85484]
[1745861988987,6.58537,1765.6,1765.5,2.85484]
[1745861990189,9.79317,1765.6,1765.5,2.85484]
[1745861990383,9.88942709,1765.6,1765.5,2.85484]
[1745861992182,9.88942954,1765.6,1765.5,2.85484]
[1745861992788,9.88942954,1765.6,1765.5,3.98738]
[1745861993183,9.88942954,1765.6,1765.5,2.85484]
[1745861993385,6.58537,1765.6,1765.5,2.85484]
[1745861993690,6.58537,1765.6,1765.5,3.98738]
[1745861993889,6.58537,1765.6,1765.5,2.85484]
[1745861994089,6.58537,1765.6,1765.5,3.98738]
[1745861994291,6.58537,1765.6,1765.5,4.53334]
[1745861994494,6.58537,1765.6,1765.5,5.66588]
[1745861995694,6.58537,1765.6,1765.5,4.53334]
[1745861995891,6.58537,1765.6,1765.5,5.66588]
[1745861997194,3.802,1765.6,1765.5,5.66588]
[1745861997693,3.802,1765.6,1765.5,10.66588]
[1745861997894,3.802,1765.6,1765.5,11.54648]
[1745861999698,3.802,1765.6,1765.5,6.54648]
[1745862000795,4.93447,1765.6,1765.5,6.54648]
[1745862000990,4.93447,1765.6,1765.5,2.85484]
[1745862001392,5.77447,1765.6,1765.5,2.85484]
[1745862001692,7.46757,1765.6,1765.5,2.85484]
[1745862002093,7.46757,1765.6,1765.5,3.98738]
[1745862002302,7.46757,1765.6,1765.5,2.85484]
[1745862005404,7.46757,1765.6,1765.5,3.98738]
[1745862005704,7.46757,1765.6,1765.5,2.85484]
[1745862006003,7.46757,1765.6,1765.5,3.98738]
[1745862006202,7.46757,1765.6,1765.5,2.85484]
[1745862006800,7.56382851,1765.6,1765.5,2.85484]
[1745862008898,7.5638333,1765.6,1765.5,2.85484]
[1745862009994,7.56383086,1765.6,1765.5,2.85484]
[1745862010507,7.56383024,1765.6,1765.5,2.85484]
[1745862012108,7.56383257,1765.6,1765.5,2.85484]
[1745862012605,7.56383257,1765.6,1765.3,1.62]
[1745862012606,1.1326,1765.4,1765.3,1.62]
[1745862012804,1.13266,1765.3,1765.2,0.8781]
[1745862013109,1.13273,1765.2,1765.1,1.13278]
[1745862013407,1.13273,1765.2,1765.1,1.97518]
[1745862014110,4.93473,1765.2,1765.1,1.97518]
[1745862015408,4.93473,1765.2,1765.1,1.97519]
[1745862015807,4.93473,1765.2,1765.1,0.8424]
[1745862017112,4.93473,1765.2,1765.1,1.97519]
[1745862018015,4.93473,1765.2,1765.1,0.8424]
[1745862018410,4.93473,1765.2,1765.1,1.97519]
[1745862018809,4.93473,1765.2,1765.1,0.8424]
[1745862019308,1.13286,1765.0,1764.9,5.14528]
[1745862019511,1.13286,1765.0,1764.9,0.8217]
[1745862020216,4.93486,1765.0,1764.9,0.8217]
[1745862020412,5.78336,1765.0,1764.9,0.8217]
[1745862022913,4.6505,1765.0,1764.7,3.2078]
[1745862023118,1.13305,1764.7,1764.6,2.84803]
[1745862023305,1.13305,1764.7,1764.6,1.715]
[1745862024014,1.13305,1764.7,1764.6,0.8468]
[1745862024319,5.75525,1764.7,1764.6,0.8468]
[1745862025018,7.50555,1764.7,1764.6,0.8468]
[1745862025407,3.802,1764.7,1764.6,1.97991]
[1745862025613,3.802,1764.7,1764.6,5.18771]
[1745862025814,2.2377,1764.7,1764.6,10.18771]
[1745862026215,1.13288,1765.0,1764.9,1.13289]
[1745862026614,1.13286,1765.0,1764.8,4.0403]
[1745862026919,1.13286,1765.0,1764.9,2.00757]
[1745862027322,4.93486,1765.0,1764.9,2.00757]
[1745862027923,4.93486,1765.0,1764.9,5.21537]
[1745862028519,4.93486,1765.0,1764.9,6.82397]
[1745862030822,4.93486,1765.0,1764.9,5.6911]
[1745862031323,4.93486,1765.0,1764.9,6.82402]
[1745862031523,4.93486,1765.0,1764.9,3.61622]
[1745862032623,4.93486,1765.0,1764.9,2.4833]
[1745862032827,4.93486,1765.0,1764.9,3.61622]
[1745862033325,4.93486,1765.0,1764.9,2.4833]
[1745862034028,4.93486,1765.0,1764.9,3.61622]
[1745862034230,4.93486,1765.0,1764.9,2.4833]
[1745862034430,5.75276,1765.0,1764.9,2.4833]
[1745862034629,7.39136,1765.0,1764.9,2.4833]
[1745862034819,1.13298,1764.8,1764.7,1.13303]
[1745862035129,4.93498,1764.8,1764.7,3.54333]
[1745862039434,3.802,1764.8,1764.7,3.54333]
[1745862039633,3.802,1764.8,1764.7,8.54333]
[1745862040132,4.93498,1764.8,1764.7,8.54333]
[1745862040333,3.802,1764.8,1764.7,8.54333]
[1745862040527,4.93498,1764.8,1764.7,8.54333]
[1745862040728,4.93498,1764.8,1764.7,3.54333]
[1745862043335,4.93498,1764.8,1764.7,3.54335]
[1745862043633,4.93498,1764.8,1764.7,1.596]
[1745862044037,1.13305,1764.7,1764.6,0.8354]
[1745862044248,1.13311,1764.6,1764.5,5.6681]
[1745862044533,1.13318,1764.5,1764.4,0.8354]
[1745862044736,1.13318,1764.5,1764.4,2.5965]
[1745862044935,3.67838,1764.5,1764.4,3.72974]
[1745862045337,7.48038,1764.5,1764.4,3.72974]
[1745862047040,7.48038,1764.5,1764.4,2.5965]
[1745862047243,7.48038,1764.5,1764.4,3.72974]
[1745862048946,3.802,1764.5,1764.4,3.72974]
[1745862052052,4.93518,1764.5,1764.4,3.72974]
[1745862053851,4.93518,1764.5,1764.4,1.7611]
[1745862054052,6.63318,1764.5,1764.4,1.7611]
[1745862054456,1.13337,1764.2,1764.1,1.13338]
[1745862054655,1.13335,1764.3,1764.2,1.13331]
[1745862054958,1.13328,1764.4,1764.3,1.13331]
[1745862056059,1.13328,1764.4,1764.3,2.89551]
[1745862056263,4.93528,1764.4,1764.3,2.89551]
[1745862058160,3.802,1764.4,1764.3,2.89551]
[1745862058461,3.2078,1765.2,1764.3,6.7622]
[1745862058757,94.414,1777.0,1765.0,3.2078]
[1745862058758,3.2078,1766.3,1765.0,3.2078]
[1745862058959,3.2078,1766.6,1765.9,3.2078]
[1745862059162,1.13203,1766.3,1766.1,4.33992]
[1745862059369,1.13203,1766.3,1766.2,1.6152]
[1745862059772,2.6424,1766.5,1766.2,1.6152]
[1745862060068,1.13197,1766.4,1766.2,2.74726]
[1745862060271,3.802,1766.3,1766.2,2.74726]
[1745862060774,4.93402,1766.3,1766.2,2.74726]
[1745862061076,3.802,1766.3,1766.2,2.74726]
[1745862061563,3.802,1766.3,1766.2,2.74729]
[1745862064474,3.802,1766.3,1766.2,1.6152]
[1745862064673,4.93402,1766.3,1766.2,1.6152]
[1745862064968,3.802,1766.3,1766.2,1.13209]
[1745862065272,4.93402,1766.3,1766.1,2.89052]
[1745862065466,3.802,1766.3,1766.2,1.13209]
[1745862065667,3.802,1766.3,1766.2,2.89049]
[1745862065873,5.496,1766.3,1766.2,2.89049]
[1745862066667,6.62802,1766.3,1766.2,2.89049]
[1745862066968,5.496,1766.3,1766.2,2.89049]
[1745862067269,5.496,1766.3,1766.0,3.904]
[1745862067476,5.496,1766.3,1765.9,3.2078]
[1745862067477,1.13221,1766.0,1765.9,3.2078]
[1745862067677,1.13221,1766.0,1765.9,1.13228]
[1745862068171,4.93421,1766.0,1765.9,1.13228]
[1745862068781,3.802,1766.0,1765.9,1.13228]
[1745862069275,4.93421,1766.0,1765.9,1.13228]
[1745862069878,1.13228,1765.9,1765.8,2.89069]
[1745862070580,4.93426,1766.0,1765.9,1.13228]
[1745862072574,1.13228,1765.9,1765.8,2.89069]
[1745862073277,3.802,1765.9,1765.8,2.89069]
[1745862073580,4.93428,1765.9,1765.8,2.89069]
[1745862073779,5.4236,1765.9,1765.4,0.8237]
[1745862073981,1.13254,1765.6,1765.5,1.13253]
[1745862074182,4.93454,1765.6,1765.5,2.84173]
[1745862074577,1.13254,1765.5,1765.4,1.13255]
[1745862074780,4.93451,1765.6,1765.5,1.13254]
[1745862074983,6.55151,1765.6,1765.5,1.13254]
[1745862075884,6.55151,1765.6,1765.5,2.84174]
[1745862076882,3.802,1765.6,1765.5,2.84174]
[1745862077389,3.802,1765.6,1765.5,3.68104]
[1745862077583,3.802,1765.6,1765.5,8.68104]
[1745862078775,3.802,1765.6,1765.5,3.68104]
[1745862082188,1.13235,1765.8,1765.7,1.13241]
[1745862082391,1.13232,1765.9,1765.8,1.13228]
[1745862082687,2.74672,1765.9,1765.8,1.13228]
[1745862083190,6.54872,1765.9,1765.8,1.13228]
[1745862084094,1.13259,1765.5,1765.4,1.13255]
[1745862084287,1.13259,1765.5,1765.4,1.7331]
[1745862084590,1.13259,1765.5,1765.4,2.8657]
[1745862084990,5.41166,1765.7,1765.5,1.1325]
[1745862085292,1.13254,1765.6,1765.5,1.1325]
[1745862085591,2.86484,1765.6,1765.5,1.1325]
[1745862086191,6.66684,1765.6,1765.5,1.1325]
[1745862088590,1.13254,1765.5,1765.4,2.86566]
[1745862088792,2.84184,1765.5,1765.4,1.13256]
[1745862089182,6.64384,1765.5,1765.4,1.13256]
[1745862089589,6.64384,1765.5,1765.4,2.74736]
[1745862093596,6.64384,1765.5,1765.4,1.6148]
[1745862093793,5.5113,1765.5,1765.2,8.2405]
[1745862093990,1.13266,1765.3,1765.2,9.8862]
[1745862094188,4.93466,1765.3,1765.2,9.8862]
[1745862098594,4.93466,1765.3,1765.2,5.9862]
[1745862098892,1.13279,1765.1,1765.0,4.34066]
[1745862099093,1.13286,1765.0,1764.9,6.78268]
[1745862099399,1.6945,1765.0,1764.9,6.78268]
[1745862100092,2.82736,1765.0,1764.9,6.78268]
[1745862100299,6.62936,1765.0,1764.9,1.13292]
[1745862102101,3.802,1765.0,1764.9,4.34072]
[1745862106295,4.93486,1765.0,1764.9,4.34072]
[1745862107003,3.802,1765.0,1764.9,4.34072]
[1745862109799,3.802,1765.0,1764.9,1.13292]
[1745862110004,4.93486,1765.0,1764.9,1.13292]
[1745862110206,3.802,1765.0,1764.9,2.84042]
[1745862114508,3.802,1765.0,1764.9,3.68552]
[1745862115304,1.95374,1765.2,1765.1,1.13279]
[1745862116815,5.75574,1765.2,1765.1,1.13279]
[1745862118517,1.13279,1765.1,1765.0,2.89351]
[1745862118914,2.88509,1765.1,1765.0,2.89351]
[1745862119209,6.68709,1765.1,1765.0,2.89351]
[1745862119604,5.5543,1765.1,1765.0,2.89351]
[1745862119809,6.68709,1765.1,1765.0,2.89351]
[1745862121319,5.5543,1765.1,1765.0,2.89351]
[1745862122119,6.68709,1765.1,1765.0,2.89351]
[1745862124016,5.5543,1765.1,1765.0,2.89351]
[1745862125020,6.68709,1765.1,1765.0,2.89351]
[1745862125911,7.51849,1765.1,1765.0,2.89351]
[1745862126112,1.13286,1765.0,1764.9,5.18578]
[1745862126410,7.51855,1765.1,1765.0,1.13286]
[1745862126719,7.51855,1765.1,1765.0,2.90326]
[1745862129622,4.93485,1765.1,1765.0,2.90326]
[1745862130221,6.54545,1765.1,1765.0,2.90326]
[1745862131022,7.36885,1765.1,1765.0,2.90326]
[1745862131223,7.36885,1765.1,1765.0,1.7704]
[1745862131520,2.83231,1764.9,1764.4,2.83311]
[1745862131721,1.13311,1764.6,1764.5,3.5163167]
[1745862132020,1.13311,1764.6,1764.5,2.76592]
[1745862132222,2.8451,1764.7,1764.6,1.13311]
[1745862132918,1.6283,1764.8,1764.7,1.13305]
[1745862133109,0.8049,1764.8,1764.7,4.34085]
[1745862133313,5.74384,1765.1,1765.0,1.13286]
[1745862133524,8.27314,1765.1,1765.0,1.13286]
[1745862139827,3.802,1765.1,1765.0,10.0890293]
[1745862140226,1.13267,1765.3,1765.2,1.13273]
[1745862140621,2.85065,1765.4,1765.3,1.13266]
[1745862141130,6.65265,1765.4,1765.3,1.13266]
[1745862141323,6.65265,1765.4,1765.3,2.85456]
[1745862142323,1.13266,1765.3,1765.2,1.13267]
[1745862142526,1.13273,1765.2,1765.1,2.74456]
[1745862142927,2.81553,1765.2,1765.1,2.74456]
[1745862143228,6.61753,1765.2,1765.1,2.74456]
[1745862143424,1.13279,1765.1,1765.0,0.8809]
[1745862143617,2.81559,1765.1,1765.0,1.13286]
[1745862144223,6.61759,1765.1,1765.0,1.13286]
[1745862144825,6.61759,1765.1,1765.0,2.72926]
[1745862145931,1.13286,1765.0,1764.9,7.1058]
[1745862146231,1.13286,1765.0,1764.9,8.23872]
[1745862146232,7.55936,1765.0,1764.9,8.23872]
[1745862147237,6.4265,1765.0,1764.9,8.23872]
[1745862147427,4.93486,1765.0,1764.9,8.23872]
[1745862148320,4.93486,1765.0,1764.9,5.03092]
[1745862148932,4.93486,1765.0,1764.9,3.898]
[1745862149127,4.93486,1765.0,1764.9,5.03092]
[1745862149833,1.13292,1764.9,1764.7,4.0887]
[1745862150036,1.13298,1764.8,1764.7,4.34082]
[1745862150334,1.13298,1764.8,1764.7,5.96382]
[1745862150533,2.89588,1764.8,1764.7,5.96382]
[1745862150829,2.89588,1764.8,1764.7,3.2078]
[1745862151034,1.13305,1764.7,1764.6,1.13311]
[1745862151234,2.85725,1764.7,1764.6,1.13311]
[1745862151533,2.85725,1764.7,1764.6,2.80481]
[1745862152230,6.65925,1764.7,1764.6,2.80481]
[1745862156133,6.65925,1764.7,1764.6,1.6717]
[1745862156346,1.13318,1764.5,1764.4,3.2078]
[1745862156639,1.13324,1764.4,1764.3,5.88548]
[1745862157138,4.93524,1764.4,1764.3,5.88548]
[1745862157340,4.93524,1764.4,1764.3,7.52108]
[1745862157639,4.93524,1764.4,1764.3,5.5336]
[1745862157936,6.56364,1764.4,1764.3,3.898]
[1745862158337,6.56364,1764.4,1764.3,5.03131]
[1745862158532,3.802,1764.4,1764.3,5.03131]
[1745862158730,3.802,1764.4,1764.3,9.08051]
[1745862159039,4.93524,1764.4,1764.3,9.08051]
[1745862159338,1.13324,1764.4,1764.3,9.08051]
[1745862163836,3.69604,1764.5,1764.4,1.13324]
[1745862164041,3.69604,1764.5,1764.4,1.7005]
[1745862164240,7.49804,1764.5,1764.4,1.7005]
[1745862164539,1.13324,1764.4,1764.3,3.2078]
[1745862164739,2.84224,1764.4,1764.3,3.2078]
[1745862165141,6.64424,1764.4,1764.3,3.2078]
[1745862165345,1.13331,1764.3,1764.2,6.84756]
[1745862166839,1.93231,1764.3,1764.2,4.9083]
[1745862167237,5.73431,1764.3,1764.2,3.2078]
[1745862167944,5.73431,1764.3,1764.2,4.34117]
[1745862168850,4.93531,1764.3,1764.2,4.34117]
[1745862169143,1.13331,1764.3,1764.2,4.34117]
[1745862172145,1.13329,1764.4,1764.3,1.13325]